[Event "*** Titled Tuesday Blitz"]
[Site "Chess.com"]
[Date "2021.03.30"]
[Round "10"]
[White "VladimirBugayev"]
[Black "gatocorbis"]
[Result "1-0"]
[WhiteElo "2268"]
[BlackElo "2094"]
[TimeControl "180+1"]
[EndTime "11:56:53 PDT"]
[Termination "VladimirBugayev won by resignation"]

1. e4 {[%clk 0:03:00.9]} 1... c5 {[%clk 0:02:59]} 2. Nc3 {[%clk 0:03:00.4]} 2...
g6 {[%clk 0:02:57.6]} 3. d4 {[%clk 0:02:59]} 3... Bg7 {[%clk 0:02:56.2]} 4. dxc5
{[%clk 0:02:54.3]} 4... Bxc3+ {[%clk 0:02:52.8]} 5. bxc3 {[%clk 0:02:53.9]} 5...
Qa5 {[%clk 0:02:52.7]} 6. Ne2 {[%clk 0:02:53.4]} 6... Qxc5 {[%clk 0:02:50.1]} 7.
Qd4 {[%clk 0:02:49.2]} 7... Qxd4 {[%clk 0:02:48.3]} 8. cxd4 {[%clk 0:02:50.1]}
8... Nc6 {[%clk 0:02:43.5]} 9. a3 {[%clk 0:02:21.6]} 9... d6 {[%clk 0:02:38.5]}
10. Bb2 {[%clk 0:02:11.1]} 10... f6 {[%clk 0:02:33.2]} 11. d5 {[%clk 0:01:56.2]}
11... Ne5 {[%clk 0:02:30.5]} 12. Nd4 {[%clk 0:01:56.1]} 12... Bd7 {[%clk
0:02:24.9]} 13. f4 {[%clk 0:01:41.2]} 13... Nf7 {[%clk 0:02:17.6]} 14. Ne6
{[%clk 0:01:32.9]} 14... Bxe6 {[%clk 0:02:15.2]} 15. dxe6 {[%clk 0:01:32.8]}
15... Nd8 {[%clk 0:02:14.3]} 16. Bb5+ {[%clk 0:01:26.9]} 16... Nc6 {[%clk
0:02:12.7]} 17. g4 {[%clk 0:01:16.6]} 17... h5 {[%clk 0:02:03.1]} 18. g5 {[%clk
0:01:10.4]} 18... h4 {[%clk 0:01:58.1]} 19. f5 {[%clk 0:01:09]} 19... Rh5 {[%clk
0:01:50.3]} 20. gxf6 {[%clk 0:01:01.5]} 20... Nxf6 {[%clk 0:01:46.7]} 21. Rg1
{[%clk 0:00:53.8]} 21... gxf5 {[%clk 0:01:30.9]} 22. Bxf6 {[%clk 0:00:52.5]}
22... O-O-O {[%clk 0:01:17.7]} 23. Bxc6 {[%clk 0:00:47.5]} 23... bxc6 {[%clk
0:01:16.1]} 24. Bxe7 {[%clk 0:00:47.6]} 24... Re8 {[%clk 0:01:14.3]} 25. Bxd6
{[%clk 0:00:45.1]} 25... Rxe6 {[%clk 0:01:11.4]} 26. e5 {[%clk 0:00:45.3]} 26...
f4 {[%clk 0:01:08.2]} 27. O-O-O {[%clk 0:00:45.4]} 27... Rf5 {[%clk 0:01:03.9]}
28. Rdf1 {[%clk 0:00:44.3]} 28... c5 {[%clk 0:01:00.1]} 29. Rf3 {[%clk
0:00:42.2]} 29... Kd7 {[%clk 0:00:55.2]} 30. Rg4 {[%clk 0:00:41.7]} 30... Kc6
{[%clk 0:00:53.3]} 31. Rxh4 {[%clk 0:00:37.6]} 31... Rg6 {[%clk 0:00:50]} 32.
Rhxf4 {[%clk 0:00:36.6]} 32... Rh5 {[%clk 0:00:47.1]} 33. h4 {[%clk 0:00:34.4]}
33... Rg2 {[%clk 0:00:44.9]} 34. Rc3 {[%clk 0:00:33.2]} 1-0

[Event "*** Titled Tuesday Blitz"]
[Site "Chess.com"]
[Date "2021.03.30"]
[Round "10"]
[White "arminmusovic"]
[Black "DeTimmerman"]
[Result "0-1"]
[WhiteElo "2584"]
[BlackElo "2758"]
[TimeControl "180+1"]
[EndTime "11:56:55 PDT"]
[Termination "DeTimmerman won by checkmate"]

1. a3 {[%clk 0:02:59]} 1... d5 {[%clk 0:02:56.8]} 2. Nc3 {[%clk 0:02:59.9]} 2...
d4 {[%clk 0:02:56.3]} 3. Ne4 {[%clk 0:03:00.3]} 3... Bf5 {[%clk 0:02:55.4]} 4.
Ng3 {[%clk 0:03:00.4]} 4... Bg6 {[%clk 0:02:56]} 5. f4 {[%clk 0:02:59.4]} 5...
h5 {[%clk 0:02:33.9]} 6. f5 {[%clk 0:02:57]} 6... h4 {[%clk 0:02:34.4]} 7. fxg6
{[%clk 0:02:57.1]} 7... hxg3 {[%clk 0:02:34.7]} 8. gxf7+ {[%clk 0:02:55.4]} 8...
Kxf7 {[%clk 0:02:35.6]} 9. Nh3 {[%clk 0:02:34.6]} 9... Rh4 {[%clk 0:02:24.1]}
10. hxg3 {[%clk 0:02:12.6]} 10... Rg4 {[%clk 0:02:03.6]} 11. e3 {[%clk
0:01:58.9]} 11... Nf6 {[%clk 0:01:53.6]} 12. Qf3 {[%clk 0:01:45.6]} 12... Nc6
{[%clk 0:01:51.4]} 13. Bc4+ {[%clk 0:01:42.6]} 13... Ke8 {[%clk 0:01:45.9]} 14.
Bb5 {[%clk 0:01:13.6]} 14... Qd6 {[%clk 0:01:36.6]} 15. Nf4 {[%clk 0:01:05.4]}
15... g5 {[%clk 0:01:36.2]} 16. Nh5 {[%clk 0:00:43.9]} 16... Qe6 {[%clk
0:01:35.6]} 17. Nxf6+ {[%clk 0:00:42]} 17... exf6 {[%clk 0:01:36.5]} 18. Rh7
{[%clk 0:00:32.9]} 18... f5 {[%clk 0:01:27.5]} 19. Rxc7 {[%clk 0:00:28.3]} 19...
Kd8 {[%clk 0:01:18]} 20. Rxb7 {[%clk 0:00:26.8]} 20... Rc8 {[%clk 0:01:18.7]}
21. Bxc6 {[%clk 0:00:25.9]} 21... Rxc6 {[%clk 0:01:17.2]} 22. Rb8+ {[%clk
0:00:25.1]} 22... Rc8 {[%clk 0:01:15.4]} 23. Rxc8+ {[%clk 0:00:24.9]} 23... Qxc8
{[%clk 0:01:16.3]} 24. d3 {[%clk 0:00:23.4]} 24... Bd6 {[%clk 0:01:04.6]} 25.
Qd5 {[%clk 0:00:20.5]} 25... Ke7 {[%clk 0:01:05.2]} 26. e4 {[%clk 0:00:20]}
26... Bxg3+ {[%clk 0:01:02.5]} 27. Kf1 {[%clk 0:00:19.1]} 27... Qxc2 {[%clk
0:00:58.4]} 28. Qb7+ {[%clk 0:00:18.1]} 28... Kf8 {[%clk 0:00:50.6]} 29. Qa8+
{[%clk 0:00:16.4]} 29... Kg7 {[%clk 0:00:51.2]} 30. Qxa7+ {[%clk 0:00:16.9]}
30... Kh6 {[%clk 0:00:49.1]} 31. Qa6+ {[%clk 0:00:15.9]} 31... Kh5 {[%clk
0:00:48.2]} 32. Qc4 {[%clk 0:00:15.2]} 32... Qf2# {[%clk 0:00:47.4]} 0-1

[Event "*** Titled Tuesday Blitz"]
[Site "Chess.com"]
[Date "2021.03.30"]
[Round "10"]
[White "fabianvivasz"]
[Black "biostatistician"]
[Result "0-1"]
[WhiteElo "2410"]
[BlackElo "2548"]
[TimeControl "180+1"]
[EndTime "11:56:55 PDT"]
[Termination "biostatistician won on time"]

1. c4 {[%clk 0:03:00.9]} 1... Nf6 {[%clk 0:02:58.1]} 2. Nf3 {[%clk 0:02:59.8]}
2... g6 {[%clk 0:02:57.6]} 3. g3 {[%clk 0:02:58.6]} 3... Bg7 {[%clk 0:02:58.5]}
4. Bg2 {[%clk 0:02:59.2]} 4... b6 {[%clk 0:02:58.7]} 5. d3 {[%clk 0:02:53]} 5...
Bb7 {[%clk 0:02:58.5]} 6. e4 {[%clk 0:02:52.7]} 6... O-O {[%clk 0:02:58.2]} 7.
O-O {[%clk 0:02:51.5]} 7... c5 {[%clk 0:02:57.1]} 8. e5 {[%clk 0:02:40.6]} 8...
Ne8 {[%clk 0:02:54.8]} 9. Re1 {[%clk 0:02:38.7]} 9... Nc6 {[%clk 0:02:53.5]} 10.
Nc3 {[%clk 0:02:34.9]} 10... Nc7 {[%clk 0:02:51.6]} 11. d4 {[%clk 0:02:23.7]}
11... cxd4 {[%clk 0:02:50.3]} 12. Nxd4 {[%clk 0:02:24.1]} 12... Ne6 {[%clk
0:02:46]} 13. Nxe6 {[%clk 0:02:00.7]} 13... fxe6 {[%clk 0:02:43.1]} 14. Bf4
{[%clk 0:01:51.2]} 14... Na5 {[%clk 0:02:22.6]} 15. Bxb7 {[%clk 0:01:27.4]}
15... Nxb7 {[%clk 0:02:23.5]} 16. Qd2 {[%clk 0:01:27.6]} 16... Rc8 {[%clk
0:02:21.3]} 17. b3 {[%clk 0:01:25.8]} 17... Nc5 {[%clk 0:02:21.5]} 18. Rad1
{[%clk 0:01:21.5]} 18... Rc7 {[%clk 0:02:19.7]} 19. Nb5 {[%clk 0:01:16.4]} 19...
Rb7 {[%clk 0:02:19.6]} 20. b4 {[%clk 0:01:10.6]} 20... Na6 {[%clk 0:02:19.4]}
21. a3 {[%clk 0:01:06.2]} 21... Qc8 {[%clk 0:02:17.5]} 22. Rc1 {[%clk
0:00:43.9]} 22... Nc7 {[%clk 0:02:15.8]} 23. Nc3 {[%clk 0:00:37.4]} 23... Rf5
{[%clk 0:02:02.8]} 24. Re4 {[%clk 0:00:14.8]} 24... Ne8 {[%clk 0:01:47.8]} 25.
g4 {[%clk 0:00:13.3]} 25... Rf7 {[%clk 0:01:46.8]} 26. Ne2 {[%clk 0:00:07.5]}
26... Rc7 {[%clk 0:01:44.7]} 27. h4 {[%clk 0:00:04.7]} 27... b5 {[%clk
0:01:40.5]} 28. cxb5 {[%clk 0:00:02.6]} 28... Qb7 {[%clk 0:01:16.3]} 29. Rxc7
{[%clk 0:00:01.8]} 29... Nxc7 {[%clk 0:01:17.2]} 30. a4 {[%clk 0:00:01.7]} 30...
Qxe4 {[%clk 0:01:16.5]} 31. Qxd7 {[%clk 0:00:01.9]} 31... Nd5 {[%clk 0:01:15.4]}
32. Qe8+ {[%clk 0:00:01.9]} 32... Rf8 {[%clk 0:01:13.2]} 33. Qd7 {[%clk
0:00:01.6]} 33... Nxf4 {[%clk 0:01:13.2]} 0-1

[Event "*** Titled Tuesday Blitz"]
[Site "Chess.com"]
[Date "2021.03.30"]
[Round "10"]
[White "Limelight2727"]
[Black "Balla_Tamas"]
[Result "0-1"]
[WhiteElo "2373"]
[BlackElo "2539"]
[TimeControl "180+1"]
[EndTime "11:56:58 PDT"]
[Termination "Balla_Tamas won by checkmate"]

1. d4 {[%clk 0:03:00.9]} 1... e6 {[%clk 0:02:59.1]} 2. c4 {[%clk 0:03:00.4]}
2... f5 {[%clk 0:02:58.6]} 3. e4 {[%clk 0:02:55.3]} 3... fxe4 {[%clk 0:02:52.7]}
4. Nc3 {[%clk 0:02:53.6]} 4... Nf6 {[%clk 0:02:52.2]} 5. Bg5 {[%clk 0:02:52.9]}
5... Be7 {[%clk 0:02:51.4]} 6. Bxf6 {[%clk 0:02:51.2]} 6... Bxf6 {[%clk
0:02:51.5]} 7. Nxe4 {[%clk 0:02:50.9]} 7... O-O {[%clk 0:02:49.6]} 8. Nf3 {[%clk
0:02:50.4]} 8... Nc6 {[%clk 0:02:48.9]} 9. Qd2 {[%clk 0:02:43.2]} 9... b6 {[%clk
0:02:43.6]} 10. Nxf6+ {[%clk 0:02:36.6]} 10... Qxf6 {[%clk 0:02:42.9]} 11. O-O-O
{[%clk 0:02:37.5]} 11... Bb7 {[%clk 0:02:38.9]} 12. Bd3 {[%clk 0:02:33.9]} 12...
Qf4 {[%clk 0:02:33.9]} 13. Qxf4 {[%clk 0:01:54.7]} 13... Rxf4 {[%clk 0:02:31.8]}
14. Bb1 {[%clk 0:01:54.5]} 14... Raf8 {[%clk 0:02:18.1]} 15. Rhe1 {[%clk
0:01:45.5]} 15... Na5 {[%clk 0:02:06.9]} 16. b3 {[%clk 0:01:24.8]} 16... Bxf3
{[%clk 0:02:05]} 17. gxf3 {[%clk 0:01:16.9]} 17... Rxf3 {[%clk 0:02:05.1]} 18.
d5 {[%clk 0:01:10.4]} 18... exd5 {[%clk 0:02:02.5]} 19. Rxd5 {[%clk 0:00:57.2]}
19... d6 {[%clk 0:02:02.5]} 20. Rh5 {[%clk 0:00:26.8]} 20... g6 {[%clk
0:01:59.4]} 21. Rh6 {[%clk 0:00:26.8]} 21... Kg7 {[%clk 0:01:55.8]} 22. Rh4
{[%clk 0:00:21.7]} 22... Rxf2 {[%clk 0:01:55.3]} 23. Re7+ {[%clk 0:00:21]} 23...
R8f7 {[%clk 0:01:54.7]} 24. Rhe4 {[%clk 0:00:19.5]} 24... Nc6 {[%clk 0:01:52.9]}
25. Rxf7+ {[%clk 0:00:19.3]} 25... Kxf7 {[%clk 0:01:50.8]} 26. h4 {[%clk
0:00:20.2]} 26... Ne5 {[%clk 0:01:49.7]} 27. h5 {[%clk 0:00:19.4]} 27... Rf1+
{[%clk 0:01:41.8]} 28. Kb2 {[%clk 0:00:18.6]} 28... g5 {[%clk 0:01:38.8]} 29.
Re2 {[%clk 0:00:12.1]} 29... h6 {[%clk 0:01:38]} 30. a3 {[%clk 0:00:09.1]} 30...
g4 {[%clk 0:01:37.5]} 31. b4 {[%clk 0:00:09.5]} 31... g3 {[%clk 0:01:37.1]} 32.
c5 {[%clk 0:00:09.5]} 32... Rf2 {[%clk 0:01:36]} 33. Rxf2+ {[%clk 0:00:08.1]}
33... gxf2 {[%clk 0:01:35.4]} 34. cxb6 {[%clk 0:00:09]} 34... axb6 {[%clk
0:01:33.4]} 35. a4 {[%clk 0:00:09.5]} 35... f1=Q {[%clk 0:01:32.6]} 36. a5
{[%clk 0:00:10.4]} 36... Qb5 {[%clk 0:01:31.5]} 37. Bc2 {[%clk 0:00:10.5]} 37...
Qxb4+ {[%clk 0:01:31.4]} 38. Kc1 {[%clk 0:00:11.4]} 38... Qxa5 {[%clk
0:01:30.7]} 39. Kd1 {[%clk 0:00:12.3]} 39... Kf6 {[%clk 0:01:30.5]} 40. Ke2
{[%clk 0:00:13.2]} 40... Qb5+ {[%clk 0:01:29.7]} 41. Kf2 {[%clk 0:00:13.5]}
41... Qc4 {[%clk 0:01:29.5]} 42. Kg3 {[%clk 0:00:14.4]} 42... Qxc2 {[%clk
0:01:28.6]} 43. Kf4 {[%clk 0:00:15.3]} 43... Qf5+ {[%clk 0:01:27.9]} 44. Kg3
{[%clk 0:00:16.2]} 44... b5 {[%clk 0:01:27.7]} 45. Kh2 {[%clk 0:00:17.1]} 45...
b4 {[%clk 0:01:28]} 46. Kh1 {[%clk 0:00:17.8]} 46... b3 {[%clk 0:01:28.9]} 47.
Kh2 {[%clk 0:00:18.7]} 47... b2 {[%clk 0:01:29.6]} 48. Kh1 {[%clk 0:00:18.9]}
48... b1=Q+ {[%clk 0:01:28.6]} 49. Kg2 {[%clk 0:00:19.8]} 49... Qbf1+ {[%clk
0:01:28.2]} 50. Kh2 {[%clk 0:00:20.7]} 50... Q5h3# {[%clk 0:01:27.9]} 0-1

[Event "*** Titled Tuesday Blitz"]
[Site "Chess.com"]
[Date "2021.03.30"]
[Round "10"]
[White "Tactictic"]
[Black "Gudmundur_Kjartansson"]
[Result "1-0"]
[WhiteElo "2414"]
[BlackElo "2506"]
[TimeControl "180+1"]
[EndTime "11:56:59 PDT"]
[Termination "Tactictic won by checkmate"]

1. e4 {[%clk 0:02:38.5]} 1... c6 {[%clk 0:02:57.2]} 2. d4 {[%clk 0:02:38.2]}
2... d5 {[%clk 0:02:56.2]} 3. e5 {[%clk 0:02:38.4]} 3... c5 {[%clk 0:02:55.3]}
4. dxc5 {[%clk 0:02:38.6]} 4... e6 {[%clk 0:02:54.6]} 5. a3 {[%clk 0:02:37.9]}
5... Bxc5 {[%clk 0:02:54.1]} 6. b4 {[%clk 0:02:37.6]} 6... Be7 {[%clk 0:02:52]}
7. Nf3 {[%clk 0:02:36.3]} 7... f6 {[%clk 0:02:48.6]} 8. Bb2 {[%clk 0:02:35]}
8... Nc6 {[%clk 0:02:47.4]} 9. Bb5 {[%clk 0:02:33.2]} 9... Bd7 {[%clk
0:02:44.8]} 10. O-O {[%clk 0:02:28.2]} 10... Nxe5 {[%clk 0:02:43.3]} 11. Nxe5
{[%clk 0:02:27.6]} 11... Bxb5 {[%clk 0:02:43]} 12. Qh5+ {[%clk 0:02:27.3]} 12...
g6 {[%clk 0:02:29.8]} 13. Nxg6 {[%clk 0:02:27]} 13... hxg6 {[%clk 0:02:01.7]}
14. Qxh8 {[%clk 0:02:23.6]} 14... Kd7 {[%clk 0:02:01.4]} 15. Re1 {[%clk
0:02:14.9]} 15... Qc7 {[%clk 0:01:40]} 16. Nc3 {[%clk 0:01:59.6]} 16... Bc4
{[%clk 0:01:39.6]} 17. Rad1 {[%clk 0:01:25.8]} 17... a5 {[%clk 0:01:11.3]} 18.
Ne4 {[%clk 0:01:06.2]} 18... axb4 {[%clk 0:00:58.3]} 19. Bxf6 {[%clk 0:00:46.8]}
19... bxa3 {[%clk 0:00:45.8]} 20. Bxe7 {[%clk 0:00:45.5]} 20... a2 {[%clk
0:00:28]} 21. Nc5+ {[%clk 0:00:31.4]} 21... Kxe7 {[%clk 0:00:24.8]} 22. Rxe6+
{[%clk 0:00:27.8]} 22... Kf8 {[%clk 0:00:19.4]} 23. Rf6+ {[%clk 0:00:22]} 23...
Ke7 {[%clk 0:00:18.9]} 24. Qg7+ {[%clk 0:00:21.1]} 24... Kd8 {[%clk 0:00:17.7]}
25. Rf8# {[%clk 0:00:21.7]} 1-0

[Event "*** Titled Tuesday Blitz"]
[Site "Chess.com"]
[Date "2021.03.30"]
[Round "10"]
[White "Supernotar"]
[Black "MPGM"]
[Result "1-0"]
[WhiteElo "2719"]
[BlackElo "2588"]
[TimeControl "180+1"]
[EndTime "11:57:01 PDT"]
[Termination "Supernotar won by resignation"]

1. d4 {[%clk 0:03:00.9]} 1... Nf6 {[%clk 0:02:59.3]} 2. c4 {[%clk 0:03:01.3]}
2... e6 {[%clk 0:02:59.3]} 3. Nf3 {[%clk 0:03:01.5]} 3... b6 {[%clk 0:02:58.6]}
4. g3 {[%clk 0:03:01.6]} 4... Ba6 {[%clk 0:02:56.2]} 5. Nbd2 {[%clk 0:03:01.4]}
5... d5 {[%clk 0:02:50.9]} 6. b3 {[%clk 0:02:59.7]} 6... Nbd7 {[%clk 0:02:46.2]}
7. Bg2 {[%clk 0:02:59.8]} 7... Be7 {[%clk 0:02:41.1]} 8. O-O {[%clk 0:02:59.9]}
8... O-O {[%clk 0:02:38.6]} 9. Bb2 {[%clk 0:03:00.2]} 9... Rc8 {[%clk
0:02:30.7]} 10. Rc1 {[%clk 0:02:59.6]} 10... c5 {[%clk 0:02:30.2]} 11. cxd5
{[%clk 0:02:58.7]} 11... exd5 {[%clk 0:02:25.1]} 12. Re1 {[%clk 0:02:58.8]}
12... Re8 {[%clk 0:02:24.4]} 13. e3 {[%clk 0:02:58.7]} 13... Bf8 {[%clk
0:02:08.1]} 14. Bf1 {[%clk 0:02:58.8]} 14... Bxf1 {[%clk 0:02:06.8]} 15. Kxf1
{[%clk 0:02:58.4]} 15... a5 {[%clk 0:02:04.5]} 16. Kg2 {[%clk 0:02:58.5]} 16...
Qe7 {[%clk 0:01:56.1]} 17. Qe2 {[%clk 0:02:58.5]} 17... Qe6 {[%clk 0:01:52.8]}
18. Rc2 {[%clk 0:02:57.3]} 18... a4 {[%clk 0:01:42.3]} 19. Rec1 {[%clk
0:02:57.3]} 19... axb3 {[%clk 0:01:39.3]} 20. axb3 {[%clk 0:02:58.2]} 20... h6
{[%clk 0:01:35.2]} 21. h3 {[%clk 0:02:57.8]} 21... Ne4 {[%clk 0:01:28.6]} 22.
Nxe4 {[%clk 0:02:54.9]} 22... Qxe4 {[%clk 0:01:26.1]} 23. Kh2 {[%clk 0:02:52.4]}
23... Bd6 {[%clk 0:01:20.2]} 24. Ne1 {[%clk 0:02:50]} 24... Re6 {[%clk
0:01:08.8]} 25. Nd3 {[%clk 0:02:45.9]} 25... Rce8 {[%clk 0:00:58.5]} 26. dxc5
{[%clk 0:02:43.7]} 26... bxc5 {[%clk 0:00:53]} 27. Qd1 {[%clk 0:02:31]} 27...
Rf6 {[%clk 0:00:50.6]} 28. Bxf6 {[%clk 0:02:27.4]} 28... Nxf6 {[%clk 0:00:49.6]}
29. Nxc5 {[%clk 0:02:26.5]} 29... Qf5 {[%clk 0:00:49.1]} 30. Kg2 {[%clk
0:02:19.3]} 30... h5 {[%clk 0:00:48.7]} 31. Qd3 {[%clk 0:02:17.1]} 31... Qg5
{[%clk 0:00:44.1]} 32. h4 {[%clk 0:02:13.2]} 32... Qg4 {[%clk 0:00:43.6]} 33.
Qe2 {[%clk 0:02:01.8]} 33... Qf5 {[%clk 0:00:43.1]} 34. Qf3 {[%clk 0:01:56.7]}
34... Qe5 {[%clk 0:00:37.2]} 35. Nb7 {[%clk 0:01:51.3]} 35... Bb8 {[%clk
0:00:36.5]} 36. Rc8 {[%clk 0:01:50.6]} 36... Ne4 {[%clk 0:00:28.5]} 37. Rxe8+
{[%clk 0:01:48.9]} 37... Qxe8 {[%clk 0:00:29.4]} 38. Qxh5 {[%clk 0:01:40.1]}
38... Nf6 {[%clk 0:00:21.3]} 39. Qf5 {[%clk 0:01:38.8]} 39... Nd7 {[%clk
0:00:17.4]} 40. Nc5 {[%clk 0:01:33]} 40... Ne5 {[%clk 0:00:14.2]} 41. Nd3 {[%clk
0:01:28.4]} 41... Nd7 {[%clk 0:00:12.9]} 42. Qxd5 {[%clk 0:01:23.1]} 42... Kh7
{[%clk 0:00:13]} 43. Nf4 {[%clk 0:01:18]} 43... Nf6 {[%clk 0:00:12.1]} 44. Qf5+
{[%clk 0:01:17.3]} 1-0

[Event "*** Titled Tuesday Blitz"]
[Site "Chess.com"]
[Date "2021.03.30"]
[Round "10"]
[White "karinachess1"]
[Black "prachiti01"]
[Result "1/2-1/2"]
[WhiteElo "2487"]
[BlackElo "2131"]
[TimeControl "180+1"]
[EndTime "11:57:03 PDT"]
[Termination "Game drawn by repetition"]

1. c4 {[%clk 0:02:58.5]} 1... Nf6 {[%clk 0:02:59.4]} 2. Nf3 {[%clk 0:02:58]}
2... g6 {[%clk 0:02:59.4]} 3. g3 {[%clk 0:02:57.9]} 3... Bg7 {[%clk 0:02:59.8]}
4. Bg2 {[%clk 0:02:58.8]} 4... O-O {[%clk 0:02:59.9]} 5. O-O {[%clk 0:02:59.3]}
5... d6 {[%clk 0:03:00.2]} 6. d4 {[%clk 0:02:59.4]} 6... Nc6 {[%clk 0:03:00.7]}
7. Nc3 {[%clk 0:02:58.9]} 7... a6 {[%clk 0:03:00.5]} 8. Bf4 {[%clk 0:02:59]}
8... Rb8 {[%clk 0:02:59.9]} 9. Rc1 {[%clk 0:02:59.2]} 9... Bd7 {[%clk
0:02:58.7]} 10. Nd5 {[%clk 0:02:35.7]} 10... e6 {[%clk 0:02:43.9]} 11. Nxf6+
{[%clk 0:02:33.2]} 11... Bxf6 {[%clk 0:02:43.7]} 12. d5 {[%clk 0:02:16.7]} 12...
Ne7 {[%clk 0:02:32.6]} 13. dxe6 {[%clk 0:02:14.6]} 13... Bxe6 {[%clk 0:02:31.7]}
14. Qd2 {[%clk 0:01:59.4]} 14... Nc6 {[%clk 0:02:27.8]} 15. Rfd1 {[%clk
0:01:58.4]} 15... Qe7 {[%clk 0:02:22.6]} 16. Bg5 {[%clk 0:01:49]} 16... Rfe8
{[%clk 0:02:14.6]} 17. h4 {[%clk 0:01:40.1]} 17... Ne5 {[%clk 0:02:04.3]} 18.
Bxf6 {[%clk 0:01:25.2]} 18... Qxf6 {[%clk 0:01:59]} 19. Nxe5 {[%clk 0:01:25.4]}
19... Qxe5 {[%clk 0:01:57]} 20. e3 {[%clk 0:01:13.6]} 20... Bg4 {[%clk
0:01:55.2]} 21. Re1 {[%clk 0:01:12.4]} 21... b6 {[%clk 0:01:52.5]} 22. Qd4
{[%clk 0:01:04.8]} 22... Qxd4 {[%clk 0:01:46]} 23. exd4 {[%clk 0:01:05.7]} 23...
Bd7 {[%clk 0:01:42.6]} 24. f4 {[%clk 0:00:53.7]} 24... a5 {[%clk 0:01:39.8]} 25.
Kf2 {[%clk 0:00:51.3]} 25... f6 {[%clk 0:01:36]} 26. Rxe8+ {[%clk 0:00:48]}
26... Rxe8 {[%clk 0:01:34.2]} 27. c5 {[%clk 0:00:48.5]} 27... dxc5 {[%clk
0:01:32.2]} 28. dxc5 {[%clk 0:00:49.4]} 28... Bg4 {[%clk 0:01:22.7]} 29. Bf1
{[%clk 0:00:27.5]} 29... Rd8 {[%clk 0:01:11.6]} 30. Ke3 {[%clk 0:00:20.6]} 30...
Re8+ {[%clk 0:01:08.1]} 31. Kf2 {[%clk 0:00:20.9]} 31... Rd8 {[%clk 0:01:07.9]}
32. cxb6 {[%clk 0:00:14.6]} 32... cxb6 {[%clk 0:01:07.4]} 33. Ke3 {[%clk
0:00:13.3]} 33... Re8+ {[%clk 0:01:07.2]} 34. Kf2 {[%clk 0:00:13.6]} 34... Rd8
{[%clk 0:01:07.3]} 35. Ke3 {[%clk 0:00:10.4]} 35... Re8+ {[%clk 0:01:07.3]} 36.
Kf2 {[%clk 0:00:08.5]} 36... Rd8 {[%clk 0:01:07.1]} 1/2-1/2

[Event "*** Titled Tuesday Blitz"]
[Site "Chess.com"]
[Date "2021.03.30"]
[Round "10"]
[White "ChelsieMonica"]
[Black "Yurovskykh_Oleksandr"]
[Result "1-0"]
[WhiteElo "2416"]
[BlackElo "2515"]
[TimeControl "180+1"]
[EndTime "11:57:04 PDT"]
[Termination "ChelsieMonica won by checkmate"]

1. e4 {[%clk 0:03:00.9]} 1... c6 {[%clk 0:02:54.3]} 2. Ke2 {[%clk 0:03:00.7]}
2... d5 {[%clk 0:02:54]} 3. exd5 {[%clk 0:03:01.6]} 3... cxd5 {[%clk 0:02:54.1]}
4. Nf3 {[%clk 0:03:02]} 4... Nc6 {[%clk 0:02:54.5]} 5. d4 {[%clk 0:03:01.9]}
5... Bg4 {[%clk 0:02:54.6]} 6. h3 {[%clk 0:03:02.4]} 6... Bh5 {[%clk 0:02:52.1]}
7. g4 {[%clk 0:03:02.5]} 7... Bg6 {[%clk 0:02:52.1]} 8. Bg2 {[%clk 0:03:02.9]}
8... e6 {[%clk 0:02:52.3]} 9. c3 {[%clk 0:03:00.2]} 9... Bd6 {[%clk 0:02:51.6]}
10. h4 {[%clk 0:02:58.5]} 10... h5 {[%clk 0:02:50.9]} 11. g5 {[%clk 0:02:57.9]}
11... Nge7 {[%clk 0:02:50.9]} 12. Be3 {[%clk 0:02:57.6]} 12... Qc7 {[%clk
0:02:41.3]} 13. Na3 {[%clk 0:02:55]} 13... a6 {[%clk 0:02:41]} 14. Nc2 {[%clk
0:02:54.8]} 14... O-O-O {[%clk 0:02:37.2]} 15. Nce1 {[%clk 0:02:54.7]} 15... f6
{[%clk 0:02:36.3]} 16. Bh3 {[%clk 0:02:48.2]} 16... Nf5 {[%clk 0:02:32.4]} 17.
Nd3 {[%clk 0:02:45.1]} 17... Kb8 {[%clk 0:02:27.4]} 18. gxf6 {[%clk 0:02:44.8]}
18... gxf6 {[%clk 0:02:27.2]} 19. Rg1 {[%clk 0:02:45]} 19... Bh7 {[%clk
0:02:26.3]} 20. Nc5 {[%clk 0:02:38.8]} 20... Rhe8 {[%clk 0:02:26]} 21. Qb3
{[%clk 0:02:36.4]} 21... Bxc5 {[%clk 0:02:18.1]} 22. dxc5 {[%clk 0:02:36.4]}
22... e5 {[%clk 0:02:18.7]} 23. Kf1 {[%clk 0:02:12.2]} 23... d4 {[%clk
0:02:08.3]} 24. cxd4 {[%clk 0:02:10.8]} 24... Nfxd4 {[%clk 0:02:05.1]} 25. Nxd4
{[%clk 0:02:10.8]} 25... exd4 {[%clk 0:01:51.8]} 26. Bh6 {[%clk 0:02:05.4]}
26... d3 {[%clk 0:01:31.7]} 27. Rg7 {[%clk 0:02:01.3]} 27... Re7 {[%clk
0:01:31.9]} 28. Rxe7 {[%clk 0:01:53.2]} 28... Nxe7 {[%clk 0:01:11.5]} 29. Bg2
{[%clk 0:01:52.5]} 29... Nc6 {[%clk 0:00:35.6]} 30. Rd1 {[%clk 0:01:34]} 30...
Ne5 {[%clk 0:00:33.1]} 31. Bf4 {[%clk 0:01:30]} 31... Rd7 {[%clk 0:00:30.1]} 32.
c6 {[%clk 0:01:25.3]} 32... Rd4 {[%clk 0:00:30.2]} 33. Be3 {[%clk 0:01:16.5]}
33... Rd6 {[%clk 0:00:28.4]} 34. cxb7 {[%clk 0:01:15.5]} 34... Ng4 {[%clk
0:00:16.7]} 35. Bf4 {[%clk 0:01:03.7]} 35... Ne5 {[%clk 0:00:16.8]} 36. Qb4
{[%clk 0:00:54.9]} 36... Rb6 {[%clk 0:00:14.9]} 37. Qf8+ {[%clk 0:00:54.1]}
37... Ka7 {[%clk 0:00:14.6]} 38. Qa8# {[%clk 0:00:53.9]} 1-0